[Event "FRA-ch Youth U16 2018"]
[Site "Agen"]
[Date "2018.04.18"]
[Round "5"]
[White "Bellahcene, Meriem"]
[Black "Andre, Victoria"]
[Result "1/2-1/2"]
[ECO "B34"]
[WhiteElo "1862"]
[BlackElo "1575"]
[Annotator "NA"]
[PlyCount "132"]
[EventDate "2018.??.??"]
[EventType "swiss"]
[EventCountry "FRA"]
[SourceTitle "playchess.com"]
[Source "ChessBase"]
[SourceQuality "1"]
[TimeControl "5400+30"]

1. e4 {[%emt 0:00:00]} c5 {[%emt 0:06:25]} 2. Nf3 {[%emt 0:00:00]} Nc6 {[%emt 0:00:18]} 3. Nc3 {[%emt 0:00:39]} g6 {[%emt 0:00:32]} 4. d4 {[%emt 0:00:25]} cxd4 {[%emt 0:00:17]} 5. Nxd4 {[%emt 0:00:04]} Bg7 {[%emt 0:00:05]} 6. Nde2 {[%emt 0:00:27]} Nf6 {[%emt 0:01:05]} 7. g3 {[%emt 0:00:47]} O-O {[%emt 0:01:14]} 8. Bg2 {[%emt 0:00:04]} d6 {[%emt 0:00:22]} 9. h3 {[%emt 0:02:01]} Bd7 {[%emt 0:11:09] LiveBook: 32 Games} 10. Be3 {[%emt 0:04:53]} Rc8 {[%emt 0:06:32]} 11. O-O {[%emt 0:05:15]} b6 {[%emt 0:04:48] B70: Sicilian Dragon: 6 g3 and 6 Be2 (without a later Be3)} (11... Qa5 12. Nd5 Nxd5 13. exd5 Ne5 14. b3 Be8 15. Bd4 Nd7 16. Bxg7 Kxg7 17. Nd4 Nf6 18. Re1 Rc7 19. a3 Qc5 {1-0 (29) Grigoriants,S (2603)-Gullaksen,E (2363) London 2015}) 12. Qd2 {[%emt 0:03:59]} Ne5 {[%emt 0:03:11]} 13. Qc1 {[%emt 0:18:36]} Bc6 $146 {[%emt 0:11:47]} ({Find the theoretical novelty and annotate with similar games:} 13... Qc7 14. b3 Bc6 15. Bd4 Ned7 16. Qd2 Nc5 17. Bxc5 dxc5 18. Rad1 Rcd8 19. Qe3 {0-1 (78) Delaney,A-Ferrer Lucas,P (2065) Valetta 1980}) 14. Nd4 {[%emt 0:07:13]} Ba8 {[%emt 0:06:21]} 15. Bh6 {[%emt 0:08:12]} Qc7 {[%emt 0:14:48]} 16. Bxg7 {[%emt 0:06:20]} Kxg7 {[%emt 0:00:06]} 17. Re1 {[%emt 0:02:05]} a6 {[%emt 0:06:50]} 18. a4 $11 {[%emt 0:01:00]} Rfd8 {[%emt 0:00:44]} 19. Qg5 {[%emt 0:08:51]} e6 {[%emt 0:10:14]} 20. Rad1 {[%emt 0:04:57]} h6 {[%emt 0:01:19]} 21. Qc1 {[%emt 0:00:10]} Nc4 {[%emt 0:01:21]} 22. Nde2 {[%emt 0:04:55]} Bc6 {[%emt 0:01:42]} 23. b3 {[%emt 0:01:43]} Ne5 {[%emt 0:00:18]} 24. Qb2 {[%emt 0:02:46]} b5 {[%emt 0:03:23]} 25. axb5 {[%emt 0:02:17]} axb5 {[%emt 0:00:25]} 26. Nd4 {[%emt 0:01:42]} b4 {[%emt 0:00:19]} 27. Na2 {[%emt 0:00:45]} Qb7 {[%emt 0:01:34]} 28. Nxc6 {[%emt 0:01:21]} Nxc6 {[%emt 0:01:43]} 29. c3 {[%emt 0:02:51]} bxc3 {[%emt 0:02:33]} 30. Nxc3 {[%emt 0:00:07]} Rb8 {[%emt 0:01:01]} 31. Rb1 {[%emt 0:00:46]} e5 {[%emt 0:01:36]} 32. Red1 {[%emt 0:03:59]} Nd4 {[%emt 0:00:39]} 33. b4 {[%emt 0:00:16]} Rdc8 {[%emt 0:00:59]} 34. Rd2 {[%emt 0:02:55]} Nd7 {[%emt 0:00:37]} 35. Ne2 {[%emt 0:00:29]} Nxe2+ {[%emt 0:00:24]} 36. Rxe2 {[%emt 0:00:01]} Rc4 {[%emt 0:00:14]} 37. b5 {[%emt 0:02:09]} Rc5 {[%emt 0:00:12]} 38. Qa3 {[%emt 0:00:34]} Rxb5 {[%emt 0:00:16]} 39. Rxb5 {[%emt 0:00:12]} Qxb5 {[%emt 0:00:04]} 40. Rd2 {[%emt 0:00:11]} Nc5 {[%emt 0:01:22]} 41. Rxd6 {[%emt 0:00:30]} Qb1+ {[%emt 0:00:05]} 42. Kh2 {[%emt 0:00:06]} Nxe4 {[%emt 0:00:09]} 43. Bxe4 {[%emt 0:01:01]} Qxe4 {[%emt 0:00:02]} 44. Qd3 {[%emt 0:02:18]} Qxd3 {[%emt 0:01:06]} 45. Rxd3 {[%emt 0:00:05]} Rb2 {[%emt 0:00:10]} 46. Kg2 {[%emt 0:00:03]} Kf6 {[%emt 0:00:39]} 47. g4 {[%emt 0:00:54]} Ke6 {[%emt 0:00:51]} 48. Rd8 Kf6 {[%emt 0:00:26]} 49. Re8 {[%emt 0:01:40]} Rb6 {[%emt 0:01:03]} 50. Kg3 {[%emt 0:00:20]} Re6 {[%emt 0:00:29]} 51. Ra8 {[%emt 0:00:17]} Re7 {[%emt 0:01:21]} 52. Ra5 {[%emt 0:00:52]} g5 {[%emt 0:00:30]} 53. Kf3 {[%emt 0:00:40]} Kg6 {[%emt 0:00:16]} 54. Ke4 {[%emt 0:00:45]} f6 {[%emt 0:00:36]} 55. Ra6 {[%emt 0:00:50]} Rd7 {[%emt 0:00:23]} 56. Ra8 {[%emt 0:00:31]} Rd4+ {[%emt 0:00:26]} 57. Ke3 {[%emt 0:00:22]} Rb4 {[%emt 0:00:09]} 58. Kf3 {[%emt 0:00:13]} h5 {[%emt 0:00:52]} 59. Ra6 {[%emt 0:01:05]} Rc4 {[%emt 0:01:00]} 60. gxh5+ {[%emt 0:00:43]} Kxh5 {[%emt 0:00:19]} 61. Rxf6 {[%emt 0:00:03]} Rf4+ {[%emt 0:00:12]} 62. Rxf4 {[%emt 0:00:04]} exf4 {[%emt 0:00:04]} 63. Ke4 {[%emt 0:00:38]} Kh4 {[%emt 0:00:39]} 64. Kf5 {[%emt 0:00:34]} Kxh3 {[%emt 0:00:11]} 65. Kxg5 {[%emt 0:00:15]} Kg2 {[%emt 0:00:50]} 66. Kxf4 {[%emt 0:00:05]} Kxf2 {[%emt 0:00:10]} 1/2-1/2

[Event "FRA-ch Youth U16 2018"]
[Site "Agen"]
[Date "2018.04.18"]
[Round "5"]
[White "Boulart, Emilie"]
[Black "Conti, Anne-Marie"]
[Result "1/2-1/2"]
[ECO "B22"]
[WhiteElo "1781"]
[BlackElo "1865"]
[Annotator "NA"]
[PlyCount "106"]
[EventDate "2018.??.??"]
[EventType "swiss"]
[EventCountry "FRA"]
[SourceTitle "playchess.com"]
[Source "ChessBase"]
[SourceQuality "1"]
[TimeControl "5400+30"]

1. e4 {[%emt 0:00:00]} c5 {[%emt 0:00:16]} 2. c3 {[%emt 0:00:00]} d5 {[%emt 0:00:07]} 3. exd5 {[%emt 0:00:00]} Qxd5 {[%emt 0:00:05]} 4. d4 {[%emt 0:00:00]} Nf6 {[%emt 0:00:07]} 5. Nf3 {[%emt 0:00:00]} Bg4 {[%emt 0:00:08]} 6. Be2 {[%emt 0:00:06]} e6 {[%emt 0:00:47]} 7. O-O {[%emt 0:00:38]} Nc6 {[%emt 0:00:17]} 8. Be3 {[%emt 0:01:02]} cxd4 {[%emt 0:00:18]} 9. cxd4 {[%emt 0:00:06]} Be7 {[%emt 0:00:08]} 10. Nc3 {[%emt 0:00:24]} Qd6 {[%emt 0:00:35]} 11. h3 {[%emt 0:00:41]} Bh5 {[%emt 0:00:08]} 12. Qb3 {[%emt 0:01:42]} O-O {[%emt 0:00:52]} 13. Rfd1 {[%emt 0:00:30]} Nb4 {[%emt 0:01:28]} 14. Rac1 {[%emt 0:15:03] LiveBook: 9 Games} Nbd5 {[%emt 0:04:00]} 15. Bg5 {[%emt 0:04:50]} Rfd8 {[%emt 0:07:41]} 16. Nxd5 {[%emt 0:20:02]} Nxd5 $11 {[%emt 0:05:41]} 17. Bxe7 {[%emt 0:00:33]} Qxe7 {[%emt 0:00:50]} 18. a3 {[%emt 0:14:49]} h6 {[%emt 0:09:50]} 19. Rc2 {[%emt 0:04:24]} Nf4 {[%emt 0:09:05]} 20. Bc4 {[%emt 0:04:39]} Bg6 {[%emt 0:07:01]} 21. Rcd2 {[%emt 0:13:06]} Rac8 {[%emt 0:04:01]} 22. Kh2 {[%emt 0:07:42]} Qc7 {[%emt 0:03:41]} 23. Ne5 {[%emt 0:05:10]} Bh5 {[%emt 0:17:16]} 24. g4 {[%emt 0:02:58]} Ng6 {[%emt 0:01:16]} 25. Qg3 {[%emt 0:01:58]} Nxe5 {[%emt 0:00:40]} 26. dxe5 {[%emt 0:00:36]} Rxd2 {[%emt 0:00:31]} 27. Rxd2 {[%emt 0:00:02]} Bxg4 {[%emt 0:01:37]} 28. Qxg4 {[%emt 0:02:06]} Qxc4 {[%emt 0:01:00]} 29. Rd8+ {[%emt 0:00:37]} Kh7 {[%emt 0:00:26]} 30. Qxc4 {[%emt 0:00:39]} Rxc4 {[%emt 0:00:11]} 31. Rd7 {[%emt 0:00:02]} Rc2 {[%emt 0:01:28]} 32. Rxb7 {[%emt 0:00:04]} Rxf2+ {[%emt 0:00:22]} 33. Kg3 {[%emt 0:00:06]} Re2 {[%emt 0:03:23]} 34. Rxf7 {[%emt 0:00:28]} Rxe5 {[%emt 0:01:06]} 35. Rxa7 {[%emt 0:00:10]} Rb5 {[%emt 0:00:08]} 36. b4 {[%emt 0:00:30]} Kg6 {[%emt 0:00:13]} 37. Ra5 {[%emt 0:00:21]} Rb8 {[%emt 0:00:20]} 38. Re5 {[%emt 0:00:15]} Kf6 {[%emt 0:00:08]} 39. Re3 {[%emt 0:01:15]} e5 {[%emt 0:00:27]} 40. Rb3 {[%emt 0:00:33]} Ke6 {[%emt 0:00:13]} 41. Kf3 {[%emt 0:01:49]} g5 {[%emt 0:01:17]} 42. b5 {[%emt 0:00:26]} Kd5 {[%emt 0:00:25]} 43. a4 {[%emt 0:00:04]} Rf8+ {[%emt 0:02:19]} 44. Ke2 {[%emt 0:00:24]} Ra8 {[%emt 0:04:13]} 45. b6 {[%emt 0:01:01]} Kc6 {[%emt 0:00:52]} 46. a5 {[%emt 0:00:33]} Kb7 {[%emt 0:00:24]} 47. Rb5 {[%emt 0:00:30]} Re8 {[%emt 0:01:07]} 48. Ke3 {[%emt 0:00:10]} h5 {[%emt 0:01:40]} 49. Rb4 {[%emt 0:00:52]} Re7 {[%emt 0:01:36]} 50. Kf3 {[%emt 0:00:33]} Ka6 {[%emt 0:04:37]} 51. Ke4 {[%emt 0:00:28]} g4 {[%emt 0:01:11]} 52. hxg4 {[%emt 0:00:20]} hxg4 {[%emt 0:00:01]} 53. Rb3 {[%emt 0:00:25]} g3 {[%emt 0:03:25]} 1/2-1/2

[Event "FRA-ch Youth U16 2018"]
[Site "Agen"]
[Date "2018.04.18"]
[Round "5"]
[White "Sabiani, Chjara"]
[Black "Grall, Alba"]
[Result "1/2-1/2"]
[ECO "D38"]
[WhiteElo "1723"]
[BlackElo "1855"]
[Annotator "NA"]
[PlyCount "98"]
[EventDate "2018.??.??"]
[EventType "swiss"]
[EventCountry "FRA"]
[SourceTitle "playchess.com"]
[Source "ChessBase"]
[SourceQuality "1"]
[TimeControl "5400+30"]

1. d4 {[%emt 0:00:00]} Nf6 {[%emt 0:00:05]} 2. c4 {[%emt 0:00:00]} e6 {[%emt 0:00:04]} 3. Nf3 {[%emt 0:00:00]} d5 {[%emt 0:00:41]} 4. Nc3 {[%emt 0:00:38]} Bb4 {[%emt 0:00:39]} 5. Bg5 {[%emt 0:03:37]} h6 {[%emt 0:00:14]} 6. Bxf6 {[%emt 0:03:21]} Qxf6 {[%emt 0:00:07]} 7. Qc2 {[%emt 0:01:37]} O-O {[%emt 0:06:22]} 8. e3 $11 {[%emt 0:05:13] LiveBook: 15 Games} Nd7 {[%emt 0:09:02]} 9. Be2 {[%emt 0:01:51]} dxc4 {[%emt 0:00:44]} 10. g4 {[%emt 0:04:38]} b5 {[%emt 0:08:55]} 11. Rg1 {[%emt 0:08:18]} g5 {[%emt 0:12:56]} 12. h4 {[%emt 0:05:11]} Kg7 {[%emt 0:01:39]} 13. O-O-O {[%emt 0:14:14]} Bxc3 {[%emt 0:07:24]} 14. bxc3 {[%emt 0:00:36]} Bb7 {[%emt 0:01:53]} 15. Rg3 {[%emt 0:05:04]} Rg8 {[%emt 0:06:05]} 16. Rdg1 {[%emt 0:04:40]} c5 {[%emt 0:07:09]} 17. Qd2 {[%emt 0:04:44]} cxd4 {[%emt 0:08:52]} 18. exd4 {[%emt 0:02:41]} Kf8 {[%emt 0:00:14]} 19. h5 {[%emt 0:06:03]} Qe7 {[%emt 0:02:03]} 20. Ne1 {[%emt 0:02:22]} Nf6 {[%emt 0:01:34]} 21. Qc2 {[%emt 0:03:24]} Qa3+ {[%emt 0:00:52]} 22. Qb2 {[%emt 0:00:51]} Qxb2+ {[%emt 0:00:36]} 23. Kxb2 {[%emt 0:00:01]} Bd5 {[%emt 0:05:18]} 24. Bf3 {[%emt 0:02:30]} Ke7 {[%emt 0:03:29]} 25. Nc2 {[%emt 0:00:31]} a5 {[%emt 0:01:36]} 26. Ne3 {[%emt 0:01:13]} Bxf3 {[%emt 0:01:09]} 27. Rxf3 {[%emt 0:00:37]} Rgd8 {[%emt 0:00:51]} 28. Re1 {[%emt 0:00:26]} Nd5 {[%emt 0:01:08]} 29. Nf5+ {[%emt 0:00:39]} Ke8 {[%emt 0:03:20]} 30. Nxh6 {[%emt 0:02:56]} Nf4 {[%emt 0:00:17]} 31. Kc2 {[%emt 0:01:22]} Kf8 {[%emt 0:00:21]} 32. Re5 {[%emt 0:00:43]} f6 {[%emt 0:00:53]} 33. Rxf4 {[%emt 0:00:43]} gxf4 {[%emt 0:00:58]} 34. Rxe6 {[%emt 0:00:22]} Kg7 {[%emt 0:02:13]} 35. Nf5+ {[%emt 0:00:31]} Kf7 {[%emt 0:00:18]} 36. Re7+ {[%emt 0:00:30]} Kg8 {[%emt 0:01:11]} 37. Nh6+ {[%emt 0:03:56]} Kf8 {[%emt 0:01:01]} 38. Rf7+ {[%emt 0:01:03]} Ke8 {[%emt 0:00:05]} 39. Rxf6 {[%emt 0:00:02]} b4 {[%emt 0:01:16]} 40. g5 {[%emt 0:02:00]} b3+ {[%emt 0:02:53]} 41. Kb2 {[%emt 0:01:17]} a4 {[%emt 0:01:16]} 42. a3 {[%emt 0:01:55]} Rd7 {[%emt 0:00:11]} 43. Re6+ {[%emt 0:02:06]} Re7 {[%emt 0:00:16]} 44. Rxe7+ Kxe7 {[%emt 0:00:04]} 45. Nf5+ {[%emt 0:00:50]} Ke6 {[%emt 0:00:33]} 46. Ng7+ Kf7 {[%emt 0:00:13]} 47. Nf5 {[%emt 0:00:19]} Ke6 {[%emt 0:00:45]} 48. Ng7+ {[%emt 0:00:12]} Kf7 49. Nf5 Rd8 1/2-1/2

[Event "FRA-ch Youth U16 2018"]
[Site "Agen"]
[Date "2018.04.19"]
[Round "6"]
[White "Grall, Alba"]
[Black "Aubert, Estee"]
[Result "1-0"]
[ECO "C00"]
[WhiteElo "1855"]
[BlackElo "1892"]
[Annotator "NA"]
[PlyCount "129"]
[EventDate "2018.??.??"]
[EventType "swiss"]
[EventCountry "FRA"]
[SourceTitle "playchess.com"]
[Source "ChessBase"]
[SourceQuality "1"]
[TimeControl "5400+30"]

1. e4 {[%emt 0:00:00]} e6 {[%emt 0:00:08]} 2. d4 {[%emt 0:00:00]} d5 {[%emt 0:00:05]} 3. Bd3 {[%emt 0:01:09]} dxe4 {[%emt 0:00:27]} 4. Bxe4 {[%emt 0:00:08]} c5 {[%emt 0:00:18]} 5. Ne2 {[%emt 0:02:11]} Nf6 {[%emt 0:00:15]} 6. Bf3 {[%emt 0:00:47]} Nc6 {[%emt 0:00:46]} 7. Be3 {[%emt 0:08:50]} e5 {[%emt 0:22:51]} 8. Bxc6+ {[%emt 0:06:10]} bxc6 {[%emt 0:00:09]} 9. dxe5 {[%emt 0:06:04]} Qxd1+ {[%emt 0:00:25]} 10. Kxd1 {[%emt 0:00:15]} Ng4 {[%emt 0:00:20]} 11. Nd2 {[%emt 0:06:55]} Ba6 {[%emt 0:16:13]} 12. Nf3 {[%emt 0:10:54]} O-O-O+ {[%emt 0:04:34]} 13. Ke1 {[%emt 0:02:04]} Nxe3 {[%emt 0:00:26]} 14. fxe3 {[%emt 0:00:05]} g6 {[%emt 0:02:07]} 15. Nc3 {[%emt 0:02:02]} Bh6 {[%emt 0:01:14]} 16. Kf2 {[%emt 0:02:17]} g5 {[%emt 0:10:09]} 17. h3 {[%emt 0:02:00]} Kc7 {[%emt 0:09:00]} 18. Rad1 {[%emt 0:03:36]} Bg7 {[%emt 0:12:14]} 19. Ne4 {[%emt 0:08:28]} h6 {[%emt 0:01:38]} 20. Nxc5 {[%emt 0:01:58]} Bc8 {[%emt 0:00:06]} 21. Rxd8 {[%emt 0:10:32]} Rxd8 {[%emt 0:00:24]} 22. Ke2 {[%emt 0:00:29]} Rd5 {[%emt 0:00:47]} 23. Nd3 {[%emt 0:00:24]} Ra5 {[%emt 0:02:54]} 24. a3 {[%emt 0:01:08]} c5 {[%emt 0:00:40]} 25. Rf1 {[%emt 0:04:13]} Be6 {[%emt 0:02:06]} 26. Rd1 {[%emt 0:07:01]} c4 {[%emt 0:02:30]} 27. Nf2 {[%emt 0:02:31]} c3 {[%emt 0:02:53]} 28. b3 {[%emt 0:00:24]} Rc5 {[%emt 0:03:21]} 29. a4 {[%emt 0:00:53]} Bf5 {[%emt 0:01:33]} 30. e4 {[%emt 0:02:03]} Be6 {[%emt 0:00:12]} 31. Nd3 {[%emt 0:00:29]} Ra5 {[%emt 0:00:29]} 32. Ke3 {[%emt 0:00:41]} Bc8 {[%emt 0:01:59]} 33. Kd4 {[%emt 0:00:35]} Bb7 {[%emt 0:00:31]} 34. Re1 {[%emt 0:00:27]} f6 {[%emt 0:00:49]} 35. Kxc3 {[%emt 0:00:24]} fxe5 {[%emt 0:00:08]} 36. Kd2 {[%emt 0:00:59]} Kd6 {[%emt 0:00:21]} 37. Ke3 {[%emt 0:00:47]} Ke7 {[%emt 0:00:52]} 38. Nd2 {[%emt 0:00:41]} Ba6 {[%emt 0:02:12]} 39. Nb2 {[%emt 0:00:56]} Rc5 {[%emt 0:00:32]} 40. Nbc4 {[%emt 0:00:30]} Ke6 {[%emt 0:00:15]} 41. Rf1 {[%emt 0:02:07]} Rc7 {[%emt 0:01:11]} 42. g4 {[%emt 0:00:52]} Rc8 {[%emt 0:00:22]} 43. Ke2 {[%emt 0:00:48]} Rd8 {[%emt 0:00:21]} 44. Rf3 {[%emt 0:01:00]} Bf8 {[%emt 0:00:24]} 45. Rd3 {[%emt 0:00:56]} Rd4 {[%emt 0:01:16]} 46. Rxd4 {[%emt 0:00:26]} exd4 {[%emt 0:00:03]} 47. Kd3 {[%emt 0:00:21]} Bc5 {[%emt 0:00:27]} 48. Nf3 {[%emt 0:00:22]} Bb6 {[%emt 0:00:33]} 49. Nxd4+ {[%emt 0:00:18]} Kf6 {[%emt 0:00:11]} 50. e5+ {[%emt 0:01:54]} Kg6 {[%emt 0:00:28]} 51. Ke3 {[%emt 0:01:01]} Bc5 {[%emt 0:00:15]} 52. c3 {[%emt 0:01:20]} Bf8 {[%emt 0:00:44]} 53. Nc6 {[%emt 0:00:26]} Bc5+ {[%emt 0:00:09]} 54. Ke4 {[%emt 0:01:02]} Kf7 {[%emt 0:01:05]} 55. Kd5 {[%emt 0:00:11]} Bf8 {[%emt 0:00:35]} 56. e6+ {[%emt 0:00:25]} Kf6 {[%emt 0:00:14]} 57. Nd2 {[%emt 0:00:52]} Bd3 {[%emt 0:01:00]} 58. Nxa7 {[%emt 0:00:50]} Bc2 {[%emt 0:00:38]} 59. Nc6 {[%emt 0:00:24]} Bd3 {[%emt 0:00:19]} 60. a5 {[%emt 0:00:25]} Ba3 {[%emt 0:00:45]} 61. Kd4 {[%emt 0:00:57]} Ba6 {[%emt 0:00:13]} 62. Kd5 {[%emt 0:00:20]} Bd3 {[%emt 0:00:19]} 63. c4 {[%emt 0:00:37]} Bf8 {[%emt 0:00:42]} 64. a6 {[%emt 0:00:10]} Be2 {[%emt 0:00:43]} 65. a7 1-0

[Event "FRA-ch Youth U16 2018"]
[Site "Agen"]
[Date "2018.04.19"]
[Round "6"]
[White "Gospodaru, Teodora"]
[Black "Sabiani, Chjara"]
[Result "0-1"]
[ECO "A50"]
[WhiteElo "1784"]
[BlackElo "1723"]
[Annotator "NA"]
[PlyCount "82"]
[EventDate "2018.??.??"]
[EventType "swiss"]
[EventCountry "FRA"]
[SourceTitle "playchess.com"]
[Source "ChessBase"]
[SourceQuality "1"]
[TimeControl "5400+30"]

1. d4 {[%emt 0:00:00]} Nf6 {[%emt 0:00:10]} 2. c4 {[%emt 0:00:00]} g6 {[%emt 0:00:06]} 3. f3 {[%emt 0:00:00]} Nh5 {[%emt 0:00:14]} 4. e4 {[%emt 0:02:22]} e5 {[%emt 0:00:35]} 5. Be3 {[%emt 0:04:23]} Bb4+ {[%emt 0:00:26]} 6. Nc3 {[%emt 0:00:52]} exd4 {[%emt 0:00:44]} 7. Bxd4 {[%emt 0:00:42]} O-O {[%emt 0:00:09]} 8. g4 {[%emt 0:02:50]} Ng7 {[%emt 0:10:18]} 9. Nge2 {[%emt 0:03:19]} Nc6 {[%emt 0:00:44]} 10. Be3 {[%emt 0:02:13]} Ne5 {[%emt 0:01:27]} 11. Nd4 Ne6 {[%emt 0:14:00]} 12. Be2 {[%emt 0:10:31]} b6 {[%emt 0:20:24]} 13. h4 {[%emt 0:25:20]} Ba6 {[%emt 0:01:53]} 14. Ndb5 {[%emt 0:09:12]} c6 {[%emt 0:09:09]} 15. Qa4 {[%emt 0:06:59]} Be7 {[%emt 0:09:02]} 16. O-O-O {[%emt 0:04:31]} Nc5 {[%emt 0:08:05]} 17. Bxc5 {[%emt 0:00:37]} Bxc5 {[%emt 0:00:33]} 18. Nd4 {[%emt 0:00:48]} Bxc4 {[%emt 0:08:11]} 19. Bxc4 {[%emt 0:00:06]} b5 {[%emt 0:00:00]} 20. Ncxb5 {[%emt 0:10:54]} cxb5 {[%emt 0:00:21]} 21. Qxb5 {[%emt 0:00:29]} Bxd4 22. Rxd4 {[%emt 0:00:17]} Nxf3 {[%emt 0:03:14]} 23. Rxd7 {[%emt 0:01:00]} Qc8 {[%emt 0:02:03]} 24. Kb1 {[%emt 0:04:29]} Ne5 {[%emt 0:01:52]} 25. Rd4 {[%emt 0:00:04]} Nxc4 {[%emt 0:01:29]} 26. Qxc4 {[%emt 0:00:12]} Qxg4 {[%emt 0:00:28]} 27. e5 {[%emt 0:02:00]} Qf5+ {[%emt 0:00:16]} 28. Re4 {[%emt 0:00:04]} Rac8 {[%emt 0:00:44]} 29. Qe2 {[%emt 0:00:21]} Rfd8 {[%emt 0:00:27]} 30. Rf1 {[%emt 0:01:01]} Rd2 {[%emt 0:03:38]} 31. Rxf5 {[%emt 0:01:57]} Rxe2 32. Rxe2 gxf5 33. Rf2 {[%emt 0:00:22]} Rc4 {[%emt 0:00:05]} 34. h5 {[%emt 0:00:50]} f4 35. h6 {[%emt 0:03:39]} Re4 {[%emt 0:02:36]} 36. Kc2 {[%emt 0:00:24]} Rxe5 {[%emt 0:00:29]} 37. Rxf4 {[%emt 0:00:04]} Re6 {[%emt 0:00:37]} 38. Rh4 {[%emt 0:02:21]} f5 {[%emt 0:00:59]} 39. Kd3 {[%emt 0:00:19]} Kf7 {[%emt 0:00:07]} 40. Rh3 {[%emt 0:02:07]} Kg6 {[%emt 0:00:58]} 41. Kd4 {[%emt 0:01:59]} Kg5 {[%emt 0:00:50]} 0-1

[Event "FRA-ch Youth U16 2018"]
[Site "Agen"]
[Date "2018.04.19"]
[Round "6"]
[White "Pionnier, Camille"]
[Black "Boulart, Emilie"]
[Result "1-0"]
[ECO "D26"]
[WhiteElo "1744"]
[BlackElo "1781"]
[Annotator "NA"]
[PlyCount "82"]
[EventDate "2018.??.??"]
[EventType "swiss"]
[EventCountry "FRA"]
[SourceTitle "playchess.com"]
[Source "ChessBase"]
[SourceQuality "1"]
[TimeControl "5400+30"]

1. d4 {[%emt 0:00:00]} d5 {[%emt 0:00:08]} 2. c4 {[%emt 0:00:00]} dxc4 {[%emt 0:00:09]} 3. Nf3 {[%emt 0:00:00]} Nf6 {[%emt 0:00:14]} 4. e3 {[%emt 0:00:00]} e6 {[%emt 0:00:30]} 5. Bxc4 {[%emt 0:00:05]} a6 {[%emt 0:00:10]} 6. Qe2 {[%emt 0:00:27]} c5 {[%emt 0:00:50]} 7. dxc5 {[%emt 0:00:35]} Bxc5 {[%emt 0:00:24]} 8. O-O {[%emt 0:00:12]} O-O {[%emt 0:00:29]} 9. e4 {[%emt 0:01:05]} h6 {[%emt 0:10:48]} 10. e5 {[%emt 0:04:23]} Nfd7 {[%emt 0:08:08]} 11. Nc3 {[%emt 0:07:25]} Qc7 {[%emt 0:02:24]} 12. Bf4 {[%emt 0:08:56]} Nc6 {[%emt 0:02:26]} 13. Qe4 {[%emt 0:06:22]} Rd8 {[%emt 0:04:36]} 14. Rac1 {[%emt 0:08:37]} Ba7 {[%emt 0:07:11]} 15. Bd3 {[%emt 0:11:22]} Nf8 {[%emt 0:00:15]} 16. Ne2 {[%emt 0:01:05]} Qa5 {[%emt 0:13:05]} 17. Bb1 {[%emt 0:30:33]} Qd5 {[%emt 0:14:29]} 18. Qc2 {[%emt 0:01:45]} Bd7 {[%emt 0:05:53]} 19. Rfd1 {[%emt 0:03:15]} Qb5 {[%emt 0:03:39]} 20. Nc3 {[%emt 0:00:46]} Qc4 {[%emt 0:03:46]} 21. Ne4 {[%emt 0:02:46]} Qxc2 {[%emt 0:04:12]} 22. Rxc2 {[%emt 0:00:04]} g5 {[%emt 0:01:03]} 23. Bg3 {[%emt 0:07:09]} Be8 {[%emt 0:01:26]} 24. Nd6 {[%emt 0:01:48]} Ng6 {[%emt 0:02:33]} 25. Re2 {[%emt 0:02:45]} Bc5 {[%emt 0:09:59]} 26. Bxg6 {[%emt 0:00:48]} fxg6 {[%emt 0:00:10]} 27. Red2 {[%emt 0:00:26]} g4 {[%emt 0:00:08]} 28. Ne1 {[%emt 0:00:34]} b6 {[%emt 0:01:20]} 29. Nd3 {[%emt 0:00:32]} Bd4 {[%emt 0:02:27]} 30. Nf4 {[%emt 0:00:37]} Bxe5 {[%emt 0:01:29]} 31. Nxe6 {[%emt 0:00:11]} Rxd6 {[%emt 0:00:33]} 32. Rxd6 {[%emt 0:00:06]} Bxd6 {[%emt 0:00:10]} 33. Rxd6 {[%emt 0:00:10]} Rc8 {[%emt 0:01:11]} 34. h3 {[%emt 0:00:57]} gxh3 {[%emt 0:00:38]} 35. gxh3 {[%emt 0:00:02]} Kf7 {[%emt 0:00:16]} 36. Nf4 {[%emt 0:00:16]} Kg7 {[%emt 0:00:06]} 37. Nd5 {[%emt 0:00:44]} b5 {[%emt 0:00:33]} 38. Nf6 {[%emt 0:00:47]} Bf7 {[%emt 0:00:20]} 39. Nd5 Be8 {[%emt 0:01:15]} 40. Kg2 {[%emt 0:01:38]} a5 {[%emt 0:00:29]} 41. Nf4 {[%emt 0:00:45]} g5 1-0

[Event "FRA-ch Youth U16 2018"]
[Site "Agen"]
[Date "2018.04.19"]
[Round "6"]
[White "Diez, Ambre"]
[Black "Francois, Gwladys"]
[Result "1/2-1/2"]
[ECO "B26"]
[WhiteElo "1701"]
[BlackElo "1765"]
[Annotator "NA"]
[PlyCount "73"]
[EventDate "2018.??.??"]
[EventType "swiss"]
[EventCountry "FRA"]
[SourceTitle "playchess.com"]
[Source "ChessBase"]
[SourceQuality "1"]
[TimeControl "5400+30"]

1. e4 {[%emt 0:00:00]} c5 {[%emt 0:00:26]} 2. Nc3 {[%emt 0:00:00]} Nc6 {[%emt 0:00:32]} 3. g3 {[%emt 0:00:00]} g6 {[%emt 0:00:45]} 4. Bg2 {[%emt 0:00:04]} Bg7 {[%emt 0:00:34]} 5. d3 {[%emt 0:00:16]} d6 {[%emt 0:00:44]} 6. Be3 {[%emt 0:00:26]} e6 {[%emt 0:01:49]} 7. Qd2 {[%emt 0:01:45]} Rb8 {[%emt 0:02:36]} 8. Nge2 {[%emt 0:02:01]} Nd4 {[%emt 0:00:49]} 9. Nd1 {[%emt 0:00:24]} b5 {[%emt 0:07:18]} 10. c3 {[%emt 0:01:25]} Nxe2 {[%emt 0:00:16]} 11. Qxe2 {[%emt 0:01:38]} Ne7 {[%emt 0:03:49]} 12. h4 {[%emt 0:04:19]} h5 {[%emt 0:11:22]} 13. O-O {[%emt 0:05:59]} O-O {[%emt 0:07:23]} 14. d4 {[%emt 0:01:27]} Qc7 {[%emt 0:00:12]} 15. Qd2 {[%emt 0:11:12]} Kh7 {[%emt 0:06:19]} 16. f4 {[%emt 0:06:46]} Bb7 {[%emt 0:05:07]} 17. Nf2 {[%emt 0:06:23]} f5 {[%emt 0:02:34]} 18. Nh3 {[%emt 0:03:41]} Bh6 {[%emt 0:03:15]} 19. e5 {[%emt 0:08:10]} c4 {[%emt 0:03:20]} 20. exd6 {[%emt 0:17:07]} Qxd6 {[%emt 0:00:15]} 21. Rfe1 {[%emt 0:01:30]} Bxg2 {[%emt 0:02:06]} 22. Kxg2 {[%emt 0:01:14]} Nd5 {[%emt 0:00:51]} 23. a3 {[%emt 0:01:35]} a5 {[%emt 0:01:54]} 24. Qe2 {[%emt 0:04:21]} Rfe8 {[%emt 0:02:37]} 25. Bd2 {[%emt 0:00:51]} Nf6 {[%emt 0:07:56]} 26. Nf2 {[%emt 0:02:57]} Bg7 {[%emt 0:01:32]} 27. Qf3 {[%emt 0:01:05]} Nd5 {[%emt 0:00:56]} 28. Qe2 {[%emt 0:00:30]} Qc6 {[%emt 0:02:47]} 29. Qf3 {[%emt 0:01:05]} Kg8 {[%emt 0:00:51]} 30. Nh3 {[%emt 0:01:16]} Bf6 {[%emt 0:00:16]} 31. Ng5 {[%emt 0:01:12]} Bxg5 {[%emt 0:01:04]} 32. fxg5 {[%emt 0:00:07]} Ne7 {[%emt 0:00:59]} 33. Bf4 {[%emt 0:00:28]} Rbc8 {[%emt 0:01:03]} 34. Re5 {[%emt 0:00:44]} Nd5 {[%emt 0:01:49]} 35. Rae1 {[%emt 0:02:49]} Kf7 {[%emt 0:00:24]} 36. Bd2 {[%emt 0:01:30]} Qb6 37. Ra1 1/2-1/2